lending/lending_fUSD_20240807
["ID","MTS","AMOUNT","RATE_DAILY","PERIOD"]
[334405335,1723039855668,-345494.18002793,0.00024,3]
[334405336,1723039855678,-18616.5264559,0.00024,2]
[334405337,1723039855689,-210.75868262,0.00024,2]
[334405338,1723039855698,-20000.0,0.00024,2]
[334405339,1723039855707,-6921821.8,0.00024,5]
[334405340,1723039855716,-963.58850882,0.00024,2]
[334405341,1723039855726,-20989.77834247,0.00024,2]
[334405342,1723039855736,-655.07026613,0.00024,7]
[334405343,1723039855747,-690.39355504,0.00024,2]
[334405344,1723039855756,-558.03837921,0.00024,2]
[334405345,1723039855766,-500.0,0.00024,20]
[334405346,1723039855776,-22246.69994728,0.00024,2]
[334405347,1723039855785,-640.49923241,0.00024,3]
[334405348,1723039855796,-21781.0,0.00024,2]
[334405349,1723039855808,-395.9302943,0.00024,2]
[334405350,1723039855819,-237.55817658,0.00024,2]
[334405351,1723039855830,-158.37211772,0.00024,2]
[334405352,1723039855841,-151.0,0.00024,7]
[334405353,1723039855851,-151.0,0.00024,7]
[334405354,1723039855864,-151.0,0.00024,7]
[334405355,1723039855879,-151.0,0.00024,7]
[334405356,1723039855889,-151.0,0.00024,7]
[334405357,1723039855898,-10000.0,0.00024,2]
[334405358,1723039855908,-10000.0,0.00024,2]
[334405359,1723039855917,-10000.0,0.00024,2]
[334405360,1723039855926,-15535.55073522,0.00024,2]
[334405361,1723039855935,-151.0,0.00024,7]
[334405362,1723039855945,-151.0,0.00024,7]
[334405363,1723039855954,-151.0,0.00024,7]
[334405364,1723039855963,-10000.0,0.00024,2]
[334405365,1723039855973,-16417.80176638,0.00024,2]
[334405366,1723039855982,-10949.38363824,0.00024,2]
[334405367,1723039855991,-7565.8441378,0.00024,2]
[334405368,1723039856000,-10395.40207631,0.00024,2]
[334405369,1723039856009,-151.0,0.00024,7]
[334405370,1723039856018,-151.0,0.00024,7]
[334405371,1723039856027,-385.079782,0.00024,7]
[334405372,1723039856037,-385.079782,0.00024,7]
[334405373,1723039856046,-385.079782,0.00024,7]
[334405374,1723039856055,-385.079782,0.00024,7]
[334405375,1723039856064,-152.121048,0.00024,7]
[334405376,1723039856074,-1500.0,0.00024001,2]
[334405377,1723039856083,-861.88804353,0.00024016,4]
[334405378,1723039856092,-150.0,0.0002402,2]
[334405379,1723039856101,-150.0,0.00024021,4]
[334405380,1723039856112,-861.88804353,0.00024033,4]
[334405381,1723039856122,-300.0,0.00024036,2]
[334405382,1723039856131,-150.0,0.00024041,2]
[334405383,1723039856140,-861.88804353,0.0002405,4]
[334405384,1723039856150,-150.0,0.0002405,4]
[334405385,1723039856159,-1500.0,0.00024052,2]
[334405386,1723039856168,-150.0,0.00024061,4]
[334405387,1723039856177,-150.0,0.00024061,4]
[334405388,1723039856186,-150.0,0.00024063,10]
[334405389,1723039856195,-82112.65713651,0.00024064,2]
[334405390,1723039856205,-150.0,0.00024064,2]
[334405391,1723039856214,-861.88804353,0.00024067,4]
[334405392,1723039856224,-243.11571084,0.00024073,2]
[334405393,1723039856234,-3053.28563372,0.0002408,2]
[334405394,1723039856243,-861.88804353,0.00024084,4]
[334405395,1723039856252,-889.80204008,0.00024095,2]
[334405396,1723039856261,-150.0,0.00024099,2]
[334405397,1723039856271,-1000.0,0.000241,2]
[334405398,1723039856280,-861.88804353,0.00024101,4]
[334405399,1723039856290,-150.0,0.00024101,4]
[334405400,1723039856301,-500.0,0.0002411,2]
[334405401,1723039856311,-500.0,0.0002411,2]
[334405402,1723039856320,-150.0,0.00024113,2]
[334405403,1723039856329,-861.88804353,0.00024118,4]
[334405404,1723039856338,-628.3730026,0.00024124,2]
[334405405,1723039856348,-2385.26322028,0.00024124,2]
[334405406,1723039856358,-568.59804658,0.00024124,2]
[334405407,1723039856373,-2442.6021425,0.00024124,2]
[334405408,1723039856386,-206.68578726,0.00024124,2]
[334405409,1723039856397,-3402.9798974,0.00024124,2]
[334405410,1723039856407,-439.89968088,0.00024124,2]
[334405411,1723039856416,-780.69207339,0.00024124,2]
[334405412,1723039856426,-206.68578726,0.00024124,2]
[334405413,1723039856435,-151.0,0.00024124,7]
[334405414,1723039856444,-151.0,0.00024124,7]
[334405415,1723039856453,-1500.0,0.00024133,2]
[334405416,1723039856463,-861.88804353,0.00024135,4]
[334405417,1723039856474,-150.0,0.00024141,4]
[334405418,1723039856483,-861.88804353,0.00024151,4]
[334405419,1723039856493,-150.0,0.00024156,4]
[334405420,1723039856502,-609.17831183,0.00024164,3]
[334405421,1723039856516,-1114.93019302,0.00024164,2]
[334405422,1723039856525,-173.0,0.00024164,2]
[334405423,1723039856535,-1143.03060064,0.00024165,2]
[334405424,1723039856544,-1147.29181242,0.00024165,2]
[334405425,1723039856554,-1122.22947578,0.00024165,2]
[334405426,1723039856563,-1088.74853426,0.00024165,2]
[334405427,1723039856572,-1127.61903478,0.00024165,2]
[334405428,1723039856582,-861.88804353,0.00024168,4]
[334405429,1723039856593,-150.0,0.0002418,4]
[334405430,1723039856602,-150.0,0.0002418,4]
[334405431,1723039856615,-150.0,0.00024183,2]
[334405432,1723039856624,-385.079782,0.00024185,7]
[334405433,1723039856633,-385.079782,0.00024185,7]
[334405434,1723039856642,-861.88804353,0.00024185,4]
[334405435,1723039856651,-500.0,0.000242,3]
[334405436,1723039856660,-861.88804353,0.00024202,4]
[334405437,1723039856670,-150.0,0.00024202,4]
[334405438,1723039856679,-150.0,0.00024203,2]
[334405439,1723039856689,-397.70309452,0.0002421,2]
[334405440,1723039856698,-861.88804353,0.00024219,4]
[334405441,1723039856707,-150.0,0.0002422,4]
[334405442,1723039856716,-150.0,0.00024225,2]
[334405443,1723039856726,-1500.0,0.00024225,2]
[334405444,1723039856735,-151.0,0.00024225,7]
[334405445,1723039856744,-150.0,0.00024234,2]
[334405446,1723039856753,-861.88804353,0.00024236,4]
[334405447,1723039856762,-150.0,0.00024245,2]
[334405448,1723039856772,-1022.0,0.0002425,2]
[334405449,1723039856782,-1219.29946739,0.0002425,2]
[334405450,1723039856791,-861.88804353,0.00024253,4]
[334405451,1723039856800,-150.0,0.0002426,4]
[334405452,1723039856809,-167.0,0.0002426,2]
[334405453,1723039856818,-297.45209096,0.00024268,2]
[334405454,1723039856827,-5000.0,0.00024269,2]
[334405455,1723039856837,-861.88804353,0.0002427,4]
[334405456,1723039856846,-861.88804353,0.00024287,4]
[334405457,1723039856855,-15388.7,0.00024287,2]
[334405458,1723039856868,-1162.10919184,0.0002429,2]
[334405459,1723039856878,-150.0,0.00024294,2]
[334405460,1723039856887,-150.0,0.000243,4]
[334405461,1723039856896,-150.0,0.000243,4]
[334405462,1723039856905,-33636.20359317,0.000243,3]
[334405463,1723039856916,-861.88804353,0.00024303,4]
[334405464,1723039856925,-861.88804353,0.0002432,4]
[334405465,1723039856934,-150.0,0.00024324,4]
[334405466,1723039856944,-150.0,0.00024324,4]
[334405467,1723039856953,-861.88804353,0.00024337,4]
[334405468,1723039856962,-150.0,0.0002434,4]
[334405469,1723039856972,-300.0,0.00024343,2]
[334405470,1723039856981,-1500.0,0.00024344,2]
[334405471,1723039856991,-150.0,0.00024346,2]
[334405472,1723039857000,-291.69652597,0.0002435,4]
[334405473,1723039857010,-861.88804353,0.00024354,4]
[334405474,1723039857019,-150.0,0.00024354,4]
[334405475,1723039857029,-150.0,0.00024358,2]
[334405476,1723039857039,-861.88804353,0.00024371,4]
[334405477,1723039857048,-150.0,0.00024379,4]
[334405478,1723039857058,-861.88804353,0.00024388,4]
[334405479,1723039857067,-1500.0,0.000244,2]
[334405480,1723039857076,-155.03255729,0.00024404,2]
[334405481,1723039857086,-8176.04654029,0.00024404,2]
[334405482,1723039857095,-466.234071,0.00024405,2]
[334405483,1723039857104,-861.88804353,0.00024405,4]
[334405484,1723039857116,-419.08111432,0.00024405,2]
[334405485,1723039857125,-419.08111432,0.00024405,2]
[334405486,1723039857135,-119169.4832378,0.00024405,2]
[334405487,1723039857144,-151.0,0.00024406,7]
[334405488,1723039857154,-151.0,0.00024406,7]
[334405489,1723039857163,-151.0,0.00024406,7]
[334405490,1723039857173,-385.079782,0.00024406,7]
[334405491,1723039857182,-385.079782,0.00024406,7]
[334405492,1723039857192,-552374.92671675,0.00024406,2]
[334405493,1723039857202,-5794.72378232,0.00024407,2]
[334405494,1723039857211,-277.79918793,0.00024409,2]
[334405495,1723039857221,-333.72002098,0.00024409,2]
[334405496,1723039857231,-5492.84175851,0.0002441,2]
[334405497,1723039857240,-119169.4832378,0.00024412,2]
[334405498,1723039857250,-5492.84175851,0.00024413,2]
[334405499,1723039857259,-1059.89986513,0.00024413,2]
[334405500,1723039857268,-466.234071,0.00024414,2]
[334405501,1723039857278,-466.234071,0.00024414,2]
[334405502,1723039857287,-5492.84175851,0.00024415,2]
[334405503,1723039857299,-152.0,0.00024415,5]
[334405504,1723039857309,-466.234071,0.00024416,2]
[334405505,1723039857318,-119169.4832378,0.00024417,2]
[334405506,1723039857328,-180.43114203,0.00024418,2]
[334405507,1723039857338,-468.28248898,0.00024418,2]
[334405508,1723039857347,-5492.84175851,0.00024419,2]
[334405509,1723039857357,-151.0,0.00024419,7]
[334405510,1723039857369,-385.079782,0.00024419,7]
[334405511,1723039857379,-385.079782,0.00024419,7]
[334405512,1723039857389,-150.0,0.00024419,4]
[334405513,1723039857399,-150.0,0.00024419,4]
[334405514,1723039857409,-283.61350051,0.00024419,2]
[334405515,1723039857419,-334.01631201,0.0002442,2]
[334405516,1723039857429,-55094.04798108,0.00024421,2]
[334405517,1723039857438,-861.88804353,0.00024422,4]
[334405518,1723039857448,-21451.56786842,0.00024423,2]
[334405519,1723039857457,-283.61350051,0.00024424,2]
[334405520,1723039857467,-5794.72378232,0.00024424,2]
[334405521,1723039857477,-277.79918793,0.00024425,2]
[334405522,1723039857486,-333.72002098,0.00024425,2]
[334405523,1723039857496,-5794.72378232,0.00024426,2]
[334405524,1723039857509,-5794.72378232,0.00024426,2]
[334405525,1723039857519,-55094.04798108,0.00024426,2]
[334405526,1723039857528,-155.03255729,0.00024427,2]
[334405527,1723039857538,-1059.89986513,0.00024428,2]
[334405528,1723039857548,-5492.84175851,0.00024429,2]
[334405529,1723039857557,-5492.84175851,0.00024429,2]
[334405530,1723039857567,-1059.89986513,0.00024431,2]
[334405531,1723039857576,-55094.04798108,0.00024432,2]
[334405532,1723039857586,-151.0,0.00024432,7]
[334405533,1723039857596,-385.079782,0.00024432,7]
[334405534,1723039857606,-385.079782,0.00024432,7]
[334405535,1723039857618,-55094.04798108,0.00024432,2]
[334405536,1723039857628,-1137.83096068,0.00024433,2]
[334405537,1723039857638,-1149.8932677,0.00024433,2]
[334405538,1723039857647,-1149.70735104,0.00024433,2]
[334405539,1723039857657,-1000.70207797,0.00024433,2]
[334405540,1723039857666,-1107.27580227,0.00024433,2]
[334405541,1723039857676,-1002.30551703,0.00024433,2]
[334405542,1723039857687,-1000.59143963,0.00024433,2]
[334405543,1723039857696,-399.8222296,0.00024434,2]
[334405544,1723039857706,-2034.8183104,0.00024434,2]
[334405545,1723039857716,-1115.0795471,0.00024434,2]
[334405546,1723039857726,-277.79918793,0.00024435,2]
[334405547,1723039857736,-283.61350051,0.00024435,2]
[334405548,1723039857745,-155.03255729,0.00024436,2]
[334405549,1723039857755,-552374.92671675,0.00024436,2]
[334405550,1723039857764,-195.4912,0.00024436,7]
[334405551,1723039857774,-385.079782,0.00024436,7]
[334405552,1723039857783,-385.07978,0.00024436,7]
[334405553,1723039857792,-1059.89986513,0.00024437,2]
[334405554,1723039857802,-180.43114203,0.00024438,2]
[334405555,1723039857811,-861.88804353,0.00024438,4]
[334405556,1723039857821,-1059.89986513,0.00024439,2]
[334405557,1723039857830,-277.79918793,0.00024439,2]
[334405558,1723039857840,-333.72002098,0.0002444,2]
[334405559,1723039857850,-3491.05229548,0.0002444,2]
[334405560,1723039857862,-419.08111432,0.00024441,2]
[334405561,1723039857871,-466.234071,0.00024442,2]
[334405562,1723039857881,-419.08111432,0.00024442,2]
[334405563,1723039857891,-466.234071,0.00024442,2]
[334405564,1723039857900,-333.72002098,0.00024443,2]
[334405565,1723039857910,-155.03255729,0.00024444,2]
[334405566,1723039857920,-468.28248898,0.00024444,2]
[334405567,1723039857930,-5794.72378232,0.00024445,2]
[334405568,1723039857939,-283.61350051,0.00024445,2]
[334405569,1723039857948,-55094.04798108,0.00024445,2]
[334405570,1723039857958,-21451.56786842,0.00024446,2]
[334405571,1723039857968,-466.234071,0.00024446,2]
[334405572,1723039857977,-419.08111432,0.00024446,2]
[334405573,1723039857987,-277.79918793,0.00024447,2]
[334405574,1723039857996,-150.0,0.00024447,2]
[334405575,1723039858006,-21451.56786842,0.00024449,2]
[334405576,1723039858015,-3491.05229548,0.00024449,2]
[334405577,1723039858025,-277.79918793,0.00024449,2]
[334405578,1723039858035,-277.79918793,0.00024449,2]
[334405579,1723039858044,-119169.4832378,0.0002445,2]
[334405580,1723039858053,-333.72002098,0.0002445,2]
[334405581,1723039858062,-333.72002098,0.00024451,2]
[334405582,1723039858072,-552374.92671675,0.00024451,2]
[334405583,1723039858082,-333.72002098,0.00024452,2]
[334405584,1723039858092,-5794.72378232,0.00024453,2]
[334405585,1723039858101,-466.234071,0.00024455,2]
[334405586,1723039858111,-5794.72378232,0.00024455,2]
[334405587,1723039858120,-861.88804353,0.00024455,4]
[334405588,1723039858130,-419.08111432,0.00024455,2]
[334405589,1723039858139,-468.28248898,0.00024455,2]
[334405590,1723039858148,-155.03255729,0.00024456,2]
[334405591,1723039858158,-155.03255729,0.00024456,2]
[334405592,1723039858168,-468.28248898,0.00024457,2]
[334405593,1723039858177,-419.08111432,0.00024457,2]
[334405594,1723039858187,-3491.05229548,0.00024458,2]
[334405595,1723039858196,-119169.4832378,0.00024459,2]
[334405596,1723039858206,-150.0,0.00024459,4]
[334405597,1723039858216,-260.1708199,0.00024459,2]
[334405598,1723039858225,-1324.0893303,0.00024459,2]
[334405599,1723039858234,-725.6003758,0.00024459,2]
[334405600,1723039858243,-1059.89986513,0.00024459,2]
[334405601,1723039858252,-333.72002098,0.00024459,2]
[334405602,1723039858261,-119169.4832378,0.0002446,2]
[334405603,1723039858271,-180.43114203,0.00024461,2]
[334405604,1723039858281,-552374.92671675,0.00024461,2]
[334405605,1723039858290,-119169.4832378,0.00024462,2]
[334405606,1723039858303,-283.61350051,0.00024462,2]
[334405607,1723039858313,-180.43114203,0.00024462,2]
[334405608,1723039858323,-3491.05229548,0.00024464,2]
[334405609,1723039858333,-1500.0,0.00024467,2]
[334405610,1723039858342,-150.0,0.00024469,2]
[334405611,1723039858353,-610604.01218043,0.0002447,2]
[334405612,1723039858365,-26193.92199661,0.0002447,2]
[334405613,1723039858375,-419.08111432,0.0002447,2]
[334405614,1723039858384,-1059.89986513,0.00024471,2]
[334405615,1723039858394,-119169.4832378,0.00024472,2]
[334405616,1723039858403,-468.28248898,0.00024472,2]
[334405617,1723039858413,-861.88804353,0.00024472,4]
[334405618,1723039858423,-21451.56786842,0.00024474,2]
[334405619,1723039858432,-5794.72378232,0.00024475,2]
[334405620,1723039858441,-552374.92671675,0.00024475,2]
[334405621,1723039858451,-552374.92671675,0.00024475,2]
[334405622,1723039858461,-155.03255729,0.00024476,2]
[334405623,1723039858471,-21451.56786842,0.00024476,2]
[334405624,1723039858480,-150.0,0.00024477,2]
[334405625,1723039858489,-3491.05229548,0.00024478,2]
[334405626,1723039858498,-283.61350051,0.00024478,2]
[334405627,1723039858508,-5492.84175851,0.00024479,2]
[334405628,1723039858521,-468.28248898,0.00024481,2]
[334405629,1723039858531,-468.28248898,0.00024481,2]
[334405630,1723039858541,-552374.92671675,0.00024483,2]
[334405631,1723039858550,-3491.05229548,0.00024483,2]
[334405632,1723039858561,-5492.84175851,0.00024485,2]
[334405633,1723039858571,-21451.56786842,0.00024485,2]
[334405634,1723039858580,-277.79918793,0.00024485,2]
[334405635,1723039858592,-150.0,0.00024487,2]
[334405636,1723039858602,-468.28248898,0.00024487,2]
[334405637,1723039858614,-3491.05229548,0.00024487,2]
[334405638,1723039858624,-155.03255729,0.00024489,2]
[334405639,1723039858633,-861.88804353,0.00024489,4]
[334405640,1723039858643,-55094.04798108,0.00024489,2]
[334405641,1723039858653,-1059.89986513,0.0002449,2]
[334405642,1723039858662,-150.0,0.00024491,4]
[334405643,1723039858672,-180.43114203,0.00024491,2]
[334405644,1723039858682,-21451.56786842,0.00024492,2]
[334405645,1723039858691,-55094.04798108,0.00024493,2]
[334405646,1723039858701,-3491.05229548,0.00024493,2]
[334405647,1723039858711,-180.43114203,0.00024494,2]
[334405648,1723039858720,-21451.56786842,0.00024495,2]
[334405649,1723039858730,-180.43114203,0.00024496,2]
[334405650,1723039858740,-283.61350051,0.00024496,2]
[334405651,1723039858749,-55094.04798108,0.00024497,2]
[334405652,1723039858759,-552374.92671675,0.00024498,2]
[334405653,1723039858769,-283.61350051,0.00024498,2]
[334405654,1723039858778,-180.43114203,0.00024498,2]
[334405655,1723039858787,-150.0,0.00024499,4]
[334405656,1723039858796,-1086.39013205,0.00024499,2]
[334405657,1723039858806,-263.10153163,0.000245,2]
[334405658,1723039858816,-1028.87804295,0.000245,2]
[334405659,1723039858826,-1137.45268451,0.000245,2]
[334405660,1723039858835,-13000.0,0.000245,2]
[334405661,1723039858845,-1022.0,0.000245,2]
[334405662,1723039858855,-861.88804353,0.00024506,4]
[334405663,1723039858867,-150.0,0.00024506,4]
[334405664,1723039858876,-150.0,0.0002451,2]
[334405665,1723039858886,-150.0,0.00024513,2]
[334405666,1723039858895,-861.88804353,0.00024523,4]
[334405667,1723039858905,-150.0,0.00024539,4]
[334405668,1723039858915,-150.0,0.00024539,4]
[334405669,1723039858925,-861.88804353,0.0002454,4]
[334405670,1723039858935,-150.0,0.00024552,2]
[334405671,1723039858944,-861.88804353,0.00024557,4]
[334405672,1723039858954,-150.0,0.00024557,2]
[334405673,1723039858964,-861.88804353,0.00024574,4]
[334405674,1723039858974,-150.0,0.00024578,4]
[334405675,1723039858983,-861.88804353,0.0002459,4]
[334405676,1723039858992,-1500.0,0.00024596,2]
[334405677,1723039859002,-770.28867179,0.000246,2]
[334405678,1723039859012,-1000.0,0.000246,10]
[334405679,1723039859021,-22649.97574922,0.000246,2]
[334405680,1723039859031,-494.0,0.000246,8]
[334405681,1723039859041,-192.0,0.000246,8]
[334405682,1723039859050,-1009.76,0.000246,2]
[334405683,1723039859060,-1009.76,0.000246,2]
[334405684,1723039859070,-2000.0,0.000246,2]
[334405685,1723039859079,-319.48,0.000246,2]
[334405686,1723039859088,-2000.0,0.000246,2]
[334405687,1723039859098,-2000.0,0.000246,2]
[334405688,1723039859107,-319.48,0.000246,2]
[334405689,1723039859118,-2000.0,0.000246,2]
[334405690,1723039859127,-712.0,0.000246,12]
[334405691,1723039859136,-150.0,0.000246,2]
[334405692,1723039859146,-600.0,0.000246,2]
[334405693,1723039859155,-275.5,0.000246,2]
[334405694,1723039859164,-1000.0,0.000246,2]
[334405695,1723039859173,-861.88804353,0.00024607,4]
[334405696,1723039859182,-2000.0,0.0002461,2]
[334405697,1723039859191,-2000.0,0.0002461,2]
[334405698,1723039859201,-2000.0,0.0002461,2]
[334405699,1723039859211,-2000.0,0.0002461,2]
[334405700,1723039859221,-150.0,0.00024618,4]
[334405701,1723039859231,-2124.303649,0.0002462,2]
[334405702,1723039859240,-2124.303649,0.0002462,2]
[334405703,1723039859250,-2000.0,0.0002462,2]
[334405704,1723039859260,-2000.0,0.0002462,2]
[334405705,1723039859269,-861.88804353,0.00024624,4]
[334405706,1723039859279,-3186.455474,0.0002463,2]
[334405707,1723039859289,-3492.670656,0.0002463,2]
[334405708,1723039859300,-861.88804353,0.00024641,4]
[334405709,1723039859309,-1500.0,0.00024646,2]
[334405710,1723039859320,-150.0,0.0002465,2]
[334405711,1723039859330,-513.95,0.00024657,7]
[334405712,1723039859340,-513.95,0.00024657,7]
[334405713,1723039859350,-513.95,0.00024657,7]
[334405714,1723039859362,-513.95,0.00024657,7]
[334405715,1723039859375,-513.95,0.00024657,7]
[334405716,1723039859392,-513.95,0.00024657,7]
[334405717,1723039859403,-513.95,0.00024657,7]
[334405718,1723039859414,-513.95,0.00024657,7]
[334405719,1723039859425,-513.95,0.00024657,7]
[334405720,1723039859435,-513.95,0.00024657,7]
[334405721,1723039859446,-513.95,0.00024657,7]
[334405722,1723039859456,-513.95,0.00024657,7]
[334405723,1723039859467,-513.95,0.00024657,7]
[334405724,1723039859581,-513.95,0.00024657,7]
[334405725,1723039859593,-513.95,0.00024657,7]
[334405726,1723039859604,-513.95,0.00024657,7]
[334405727,1723039859613,-513.95,0.00024657,7]
[334405728,1723039859623,-513.95,0.00024657,7]
[334405729,1723039859633,-513.95,0.00024657,7]
[334405730,1723039859643,-513.95,0.00024657,7]
[334405731,1723039859654,-513.95,0.00024657,7]
[334405732,1723039859664,-513.95,0.00024657,7]
[334405733,1723039859674,-513.95,0.00024657,7]
[334405734,1723039859684,-514.01186435,0.00024657,7]
[334405735,1723039859693,-3468.78,0.00024657,7]
[334405736,1723039859703,-3468.78,0.00024657,7]
[334405737,1723039859713,-3468.78,0.00024657,7]
[334405738,1723039859723,-3468.78,0.00024657,7]
[334405739,1723039859733,-3468.78,0.00024657,7]
[334405740,1723039859743,-3468.78,0.00024657,7]
[334405741,1723039859753,-3468.78,0.00024657,7]
[334405742,1723039859762,-3468.78,0.00024657,7]
[334405743,1723039859772,-3468.78,0.00024657,7]
[334405744,1723039859781,-3468.78,0.00024657,7]
[334405745,1723039859791,-3468.78,0.00024657,7]
[334405746,1723039859800,-3468.78,0.00024657,7]
[334405747,1723039859810,-3468.78,0.00024657,7]
[334405748,1723039859820,-3468.78,0.00024657,7]
[334405749,1723039859829,-3468.78,0.00024657,7]
[334405750,1723039859839,-3468.78,0.00024657,7]
[334405751,1723039859850,-3468.78,0.00024657,7]
[334405752,1723039859860,-3468.78,0.00024657,7]
[334405753,1723039859870,-3468.78,0.00024657,7]
[334405754,1723039859880,-3468.78,0.00024657,7]
[334405755,1723039859890,-3468.78,0.00024657,7]
[334405756,1723039859900,-3468.78,0.00024657,7]
[334405757,1723039859909,-3468.78,0.00024657,7]
[334405758,1723039859918,-3468.79360216,0.00024657,7]
[334405759,1723039859928,-500.0,0.00024657,7]
[334405760,1723039859938,-500.0,0.00024657,7]
[334405761,1723039859948,-500.0,0.00024657,7]
[334405762,1723039859958,-500.0,0.00024657,7]
[334405763,1723039859967,-500.0,0.00024657,7]
[334405764,1723039859977,-500.0,0.00024657,7]
[334405765,1723039859987,-500.0,0.00024657,7]
[334405766,1723039859997,-500.0,0.00024657,7]
[334405767,1723039860007,-500.0,0.00024657,7]
[334405768,1723039860017,-500.0,0.00024657,7]
[334405769,1723039860026,-500.0,0.00024657,7]
[334405770,1723039860037,-500.0,0.00024657,7]
[334405771,1723039860048,-500.0,0.00024657,7]
[334405772,1723039860058,-500.0,0.00024657,7]
[334405773,1723039860068,-500.0,0.00024657,7]
[334405774,1723039860079,-500.0,0.00024657,7]
[334405775,1723039860089,-333.72505922,0.00024657,7]
[334405776,1723039860099,-500.0,0.00024657,7]
[334405777,1723039860108,-500.0,0.00024657,7]
[334405778,1723039860118,-500.0,0.00024657,7]
[334405779,1723039860128,-500.0,0.00024657,7]
[334405780,1723039860137,-500.0,0.00024657,7]
[334405781,1723039860147,-500.0,0.00024657,7]
[334405782,1723039860157,-500.0,0.00024657,7]
[334405783,1723039860167,-500.0,0.00024657,7]
[334405784,1723039860176,-500.0,0.00024657,7]
[334405785,1723039860185,-500.0,0.00024657,7]
[334405786,1723039860195,-500.0,0.00024657,7]
[334405787,1723039860205,-500.0,0.00024657,7]
[334405788,1723039860215,-500.0,0.00024657,7]
[334405789,1723039860225,-178.80451843,0.00024657,7]
[334405790,1723039860235,-1289.64,0.00024657,5]
[334405791,1723039860244,-1289.64,0.00024657,5]
[334405792,1723039860254,-1289.64,0.00024657,5]
[334405793,1723039860264,-1289.64,0.00024657,5]
[334405794,1723039860275,-1289.64,0.00024657,5]
[334405795,1723039860285,-1289.64,0.00024657,5]
[334405796,1723039860295,-1289.64,0.00024657,5]
[334405797,1723039860306,-1289.64,0.00024657,5]
[334405798,1723039860316,-1289.64,0.00024657,5]
[334405799,1723039860326,-1289.64,0.00024657,5]
[334405800,1723039860337,-1289.64,0.00024657,5]
[334405801,1723039860347,-1289.64,0.00024657,5]
[334405802,1723039860357,-1289.64,0.00024657,5]
[334405803,1723039860367,-1289.64,0.00024657,5]
[334405804,1723039860377,-1289.64,0.00024657,5]
[334405805,1723039860387,-1289.64,0.00024657,5]
[334405806,1723039860397,-1289.64,0.00024657,5]
[334405807,1723039860407,-1289.64,0.00024657,5]
[334405808,1723039860417,-1289.64,0.00024657,5]
[334405809,1723039860427,-1289.64,0.00024657,5]
[334405810,1723039860437,-1289.64,0.00024657,5]
[334405811,1723039860446,-1289.64,0.00024657,5]
[334405812,1723039860457,-1289.64,0.00024657,5]
[334405813,1723039860467,-1289.74499195,0.00024657,5]
[334405814,1723039860476,-500.0,0.00024658,2]
[334405815,1723039860486,-500.0,0.00024658,2]
[334405816,1723039860496,-500.0,0.00024658,2]
[334405817,1723039860508,-500.0,0.00024658,2]
[334405818,1723039860519,-500.0,0.00024658,2]
[334405819,1723039860528,-500.0,0.00024658,2]
[334405820,1723039860538,-242458.0,0.00024658,2]
[334405821,1723039860548,-1256.36,0.00024658,30]
[334405822,1723039860559,-15875.64863544,0.00024658,2]
[334405823,1723039860569,-861.88804353,0.00024658,4]
[334405824,1723039860579,-242.86805224,0.00024658,4]
[334405825,1723039860589,-167.69849803,0.00024658,4]
[334405826,1723039860602,-189.97761021,0.00024658,4]
[334405827,1723039860612,-187.50964904,0.00024658,4]
[334405828,1723039860622,-223.60230036,0.00024658,4]
[334405829,1723039860631,-279.96767476,0.00024658,4]
[334405830,1723039860641,-155.71864649,0.00024658,4]
[334405831,1723039860652,-217.75538603,0.00024658,4]
[334405832,1723039860662,-153.47353133,0.0002466,2]
[334405833,1723039860672,-153.47353133,0.0002466,2]
[334405834,1723039860681,-153.47353133,0.0002466,2]